[Event "Early-Titled-Tuesday-Blitz-August-29-2023"]
[Site "Chess.com"]
[Date "2023.08.29"]
[Round "1"]
[White "GianmarcoVaR"]
[Black "Ducke13"]
[Result "0-1"]
[WhiteElo "2747"]
[BlackElo "2434"]
[TimeControl "180+1"]
[EndTime "8:07:39 PDT"]
[Termination "Ducke13 won on time"]

1. e4 {[%clk 0:02:24.9]} 1... c5 {[%clk 0:02:55.2]} 2. Nf3 {[%clk 0:02:25.5]}
2... d6 {[%clk 0:02:53]} 3. Bb5+ {[%clk 0:02:25.7]} 3... Nd7 {[%clk 0:02:52.4]}
4. a4 {[%clk 0:02:26.2]} 4... Nf6 {[%clk 0:02:48.9]} 5. Nc3 {[%clk 0:02:26.5]}
5... g6 {[%clk 0:02:45.7]} 6. O-O {[%clk 0:02:23.1]} 6... a6 {[%clk 0:02:45.6]}
7. Be2 {[%clk 0:02:20.9]} 7... Bg7 {[%clk 0:02:44.2]} 8. d3 {[%clk 0:02:20.7]}
8... O-O {[%clk 0:02:43.5]} 9. Qd2 {[%clk 0:02:21.3]} 9... Re8 {[%clk
0:01:55.7]} 10. Qf4 {[%clk 0:01:31.8]} 10... b6 {[%clk 0:01:53.1]} 11. Qh4
{[%clk 0:01:32]} 11... Bb7 {[%clk 0:01:49.1]} 12. Bh6 {[%clk 0:01:32.3]} 12...
Bc6 {[%clk 0:01:38.7]} 13. Bxg7 {[%clk 0:01:06.7]} 13... Kxg7 {[%clk 0:01:38.6]}
14. d4 {[%clk 0:01:01.4]} 14... cxd4 {[%clk 0:01:23.7]} 15. Nxd4 {[%clk
0:01:02.3]} 15... Bb7 {[%clk 0:01:20.6]} 16. Rad1 {[%clk 0:00:41.8]} 16... Rc8
{[%clk 0:01:19.7]} 17. Kh1 {[%clk 0:00:38.2]} 17... e5 {[%clk 0:00:55.3]} 18.
Nb3 {[%clk 0:00:37]} 18... Nxe4 {[%clk 0:00:42.8]} 19. Qxd8 {[%clk 0:00:37.2]}
19... Rexd8 {[%clk 0:00:38.4]} 20. Nxe4 {[%clk 0:00:37.8]} 20... Bxe4 {[%clk
0:00:39]} 21. c3 {[%clk 0:00:38.3]} 21... Bc2 {[%clk 0:00:36.2]} 22. Nd2 {[%clk
0:00:19.8]} 22... Bxd1 {[%clk 0:00:35.7]} 23. Rxd1 {[%clk 0:00:20.7]} 23... Nc5
{[%clk 0:00:19.1]} 24. Ra1 {[%clk 0:00:13.8]} 24... d5 {[%clk 0:00:15.1]} 25. b4
{[%clk 0:00:03.3]} 25... Ne6 {[%clk 0:00:15.2]} 26. Ra3 {[%clk 0:00:02.8]} 26...
a5 {[%clk 0:00:10.5]} 27. bxa5 {[%clk 0:00:02.2]} 27... bxa5 {[%clk 0:00:11.4]}
28. g3 {[%clk 0:00:02.3]} 28... Rc7 {[%clk 0:00:10.2]} 29. Bf3 {[%clk
0:00:01.8]} 29... e4 {[%clk 0:00:09]} 30. Bg4 {[%clk 0:00:01.2]} 30... f5 {[%clk
0:00:09.1]} 31. Be2 {[%clk 0:00:01.3]} 31... Rdc8 {[%clk 0:00:09.2]} 32. Nb1
{[%clk 0:00:01.7]} 32... Nc5 {[%clk 0:00:08.4]} 33. Bb5 {[%clk 0:00:02]} 33...
Nd3 {[%clk 0:00:05.9]} 34. Ra2 {[%clk 0:00:02.2]} 34... d4 {[%clk 0:00:05.6]}
35. Kg2 {[%clk 0:00:01]} 35... dxc3 {[%clk 0:00:05.3]} 36. Rc2 {[%clk
0:00:01.5]} 36... Nb4 {[%clk 0:00:04.8]} 37. Rc1 {[%clk 0:00:01.8]} 37... c2
{[%clk 0:00:04.6]} 38. Na3 {[%clk 0:00:01.8]} 38... Na2 {[%clk 0:00:04.8]} 39.
Rxc2 {[%clk 0:00:01.4]} 39... Rxc2 {[%clk 0:00:04.4]} 40. Nxc2 {[%clk
0:00:02.3]} 40... Rxc2 {[%clk 0:00:04.8]} 41. Be8 {[%clk 0:00:01.7]} 41... Nc3
{[%clk 0:00:04.7]} 42. Bxg6 {[%clk 0:00:02.6]} 42... hxg6 {[%clk 0:00:04.5]} 0-1

[Event "Early-Titled-Tuesday-Blitz-August-29-2023"]
[Site "Chess.com"]
[Date "2023.08.29"]
[Round "1"]
[White "elchacal664"]
[Black "tsaruk_maks"]
[Result "0-1"]
[WhiteElo "2413"]
[BlackElo "2749"]
[TimeControl "180+1"]
[EndTime "8:07:39 PDT"]
[Termination "tsaruk_maks won by resignation"]

1. e4 {[%clk 0:02:59.6]} 1... c5 {[%clk 0:03:00]} 2. Nc3 {[%clk 0:02:58.4]} 2...
d6 {[%clk 0:03:00.9]} 3. Bb5+ {[%clk 0:02:57.5]} 3... Bd7 {[%clk 0:03:01.5]} 4.
Bxd7+ {[%clk 0:02:54.7]} 4... Nxd7 {[%clk 0:03:02.4]} 5. Nf3 {[%clk 0:02:53.7]}
5... g6 {[%clk 0:03:01.1]} 6. O-O {[%clk 0:02:51.6]} 6... Bg7 {[%clk 0:03:01.7]}
7. Re1 {[%clk 0:02:51.4]} 7... Ngf6 {[%clk 0:02:47.8]} 8. e5 {[%clk 0:02:42.9]}
8... dxe5 {[%clk 0:02:47]} 9. Nxe5 {[%clk 0:02:42.6]} 9... O-O {[%clk
0:02:47.9]} 10. d3 {[%clk 0:02:40.2]} 10... Nxe5 {[%clk 0:02:43.1]} 11. Rxe5
{[%clk 0:02:39]} 11... b6 {[%clk 0:02:44]} 12. Re2 {[%clk 0:02:33.2]} 12... Qd7
{[%clk 0:02:42.5]} 13. Bg5 {[%clk 0:02:29.6]} 13... Rfe8 {[%clk 0:02:40]} 14. h3
{[%clk 0:02:25.3]} 14... Rad8 {[%clk 0:02:40.3]} 15. Qc1 {[%clk 0:02:20.7]}
15... Qf5 {[%clk 0:02:36.3]} 16. Qf4 {[%clk 0:02:15.4]} 16... Qxf4 {[%clk
0:02:16.1]} 17. Bxf4 {[%clk 0:02:16.3]} 17... Nd5 {[%clk 0:02:16.7]} 18. Bd2
{[%clk 0:02:11.5]} 18... Nxc3 {[%clk 0:01:52.7]} 19. Bxc3 {[%clk 0:02:10.7]}
19... Bxc3 {[%clk 0:01:52.9]} 20. bxc3 {[%clk 0:02:11.4]} 20... c4 {[%clk
0:01:52]} 21. d4 {[%clk 0:02:00.3]} 21... Rd5 {[%clk 0:01:51.1]} 22. f4 {[%clk
0:01:49.9]} 22... e6 {[%clk 0:01:48.5]} 23. a4 {[%clk 0:01:46.9]} 23... h5
{[%clk 0:01:39.8]} 24. Kf2 {[%clk 0:01:42.9]} 24... Red8 {[%clk 0:01:34.1]} 25.
Re5 {[%clk 0:01:41.9]} 25... Kf8 {[%clk 0:01:23.2]} 26. Rb1 {[%clk 0:01:40.1]}
26... Ke7 {[%clk 0:01:23.4]} 27. Rb4 {[%clk 0:01:34.7]} 27... f6 {[%clk
0:01:23.4]} 28. Re3 {[%clk 0:01:29.1]} 28... Rc8 {[%clk 0:01:23.4]} 29. Rb1
{[%clk 0:01:22.1]} 29... Kd7 {[%clk 0:01:23]} 30. Rbe1 {[%clk 0:01:19.9]} 30...
Rc6 {[%clk 0:01:22.8]} 31. Rb1 {[%clk 0:01:17.7]} 31... Kc7 {[%clk 0:01:10.9]}
32. g4 {[%clk 0:01:17.3]} 32... Kb7 {[%clk 0:01:06.9]} 33. Rg1 {[%clk
0:01:15.8]} 33... h4 {[%clk 0:00:59.8]} 34. Rge1 {[%clk 0:01:11.5]} 34... Rdd6
{[%clk 0:00:59.9]} 35. Ke2 {[%clk 0:01:00.5]} 35... Ka6 {[%clk 0:00:59.4]} 36.
Kd2 {[%clk 0:00:58.9]} 36... Ka5 {[%clk 0:00:59.3]} 37. Ra1 {[%clk 0:00:57.6]}
37... Rd5 {[%clk 0:00:54.5]} 38. Rae1 {[%clk 0:00:52.7]} 38... Rdd6 {[%clk
0:00:24.9]} 39. Ra1 {[%clk 0:00:51.7]} 39... g5 {[%clk 0:00:25.6]} 40. fxg5
{[%clk 0:00:50.2]} 40... fxg5 {[%clk 0:00:26.5]} 41. Kc1 {[%clk 0:00:25.5]}
41... Rd5 {[%clk 0:00:24.7]} 42. Kb2 {[%clk 0:00:25.5]} 42... e5 {[%clk
0:00:21.5]} 43. Rxe5 {[%clk 0:00:23.7]} 43... Rxe5 {[%clk 0:00:21.2]} 44. dxe5
{[%clk 0:00:24.6]} 44... Re6 {[%clk 0:00:21.9]} 45. Ka3 {[%clk 0:00:18.2]} 45...
Rxe5 {[%clk 0:00:21.3]} 46. Rb1 {[%clk 0:00:18.6]} 46... a6 {[%clk 0:00:18.2]}
47. Rb4 {[%clk 0:00:18.5]} 47... b5 {[%clk 0:00:12.8]} 48. axb5 {[%clk
0:00:16.5]} 48... axb5 {[%clk 0:00:13.7]} 49. Rb1 {[%clk 0:00:15.9]} 49... Re3
{[%clk 0:00:14.6]} 50. Kb2 {[%clk 0:00:14.8]} 50... Rxh3 {[%clk 0:00:15.2]} 51.
Rf1 {[%clk 0:00:14.8]} 51... Rg3 {[%clk 0:00:14.7]} 52. Rf5 {[%clk 0:00:15.1]}
52... Rxg4 {[%clk 0:00:15]} 0-1

[Event "Early-Titled-Tuesday-Blitz-August-29-2023"]
[Site "Chess.com"]
[Date "2023.08.29"]
[Round "1"]
[White "DishonorOnYourCow"]
[Black "Jospem"]
[Result "0-1"]
[WhiteElo "2527"]
[BlackElo "3048"]
[TimeControl "180+1"]
[EndTime "8:07:40 PDT"]
[Termination "Jospem won on time"]

1. d4 {[%clk 0:03:00.9]} 1... Nf6 {[%clk 0:03:00.2]} 2. c4 {[%clk 0:03:01.2]}
2... e6 {[%clk 0:03:00.4]} 3. Nf3 {[%clk 0:03:01.7]} 3... Bb4+ {[%clk
0:03:00.1]} 4. Nbd2 {[%clk 0:03:02]} 4... O-O {[%clk 0:02:59.9]} 5. a3 {[%clk
0:03:01.9]} 5... Be7 {[%clk 0:03:00.7]} 6. e4 {[%clk 0:03:02.3]} 6... d6 {[%clk
0:03:01.5]} 7. Be2 {[%clk 0:03:01.8]} 7... a5 {[%clk 0:03:02.2]} 8. O-O {[%clk
0:03:00.9]} 8... Nbd7 {[%clk 0:03:02.6]} 9. b3 {[%clk 0:02:59.3]} 9... e5 {[%clk
0:03:01.8]} 10. Bb2 {[%clk 0:02:53.1]} 10... exd4 {[%clk 0:03:01.2]} 11. Nxd4
{[%clk 0:02:53.5]} 11... Re8 {[%clk 0:03:01.9]} 12. f3 {[%clk 0:02:51.8]} 12...
Bf8 {[%clk 0:03:01.3]} 13. Re1 {[%clk 0:02:48.5]} 13... c6 {[%clk 0:03:01.2]}
14. Nf1 {[%clk 0:02:42.1]} 14... Ne5 {[%clk 0:02:56.2]} 15. Ne3 {[%clk
0:02:39.2]} 15... g6 {[%clk 0:02:43.8]} 16. Ndc2 {[%clk 0:02:22.1]} 16... Qc7
{[%clk 0:02:41.3]} 17. Qd2 {[%clk 0:02:10.6]} 17... Be6 {[%clk 0:02:34.7]} 18.
Rad1 {[%clk 0:02:05.4]} 18... Rad8 {[%clk 0:02:35]} 19. Qc3 {[%clk 0:02:04.4]}
19... Nh5 {[%clk 0:02:21.7]} 20. Nd4 {[%clk 0:01:57.3]} 20... Bg7 {[%clk
0:02:18.9]} 21. Qc2 {[%clk 0:01:56]} 21... Nf4 {[%clk 0:02:13.4]} 22. Bf1 {[%clk
0:01:56.1]} 22... Qe7 {[%clk 0:02:12.7]} 23. g3 {[%clk 0:01:52.5]} 23... Nh5
{[%clk 0:02:13]} 24. f4 {[%clk 0:01:50.6]} 24... c5 {[%clk 0:01:47.3]} 25. fxe5
{[%clk 0:01:23]} 25... cxd4 {[%clk 0:01:47.5]} 26. exd6 {[%clk 0:01:22.7]} 26...
Qxd6 {[%clk 0:01:40]} 27. Nd5 {[%clk 0:00:54.5]} 27... Bxd5 {[%clk 0:01:39.9]}
28. cxd5 {[%clk 0:00:54.9]} 28... Rc8 {[%clk 0:01:39.5]} 29. Qf2 {[%clk
0:00:53.3]} 29... Rc3 {[%clk 0:01:28.1]} 30. Bxc3 {[%clk 0:00:36.8]} 30... dxc3
{[%clk 0:01:29]} 31. Bc4 {[%clk 0:00:28.8]} 31... Be5 {[%clk 0:01:26.8]} 32. Rf1
{[%clk 0:00:24.1]} 32... Nf6 {[%clk 0:01:25.3]} 33. Rc1 {[%clk 0:00:19.3]} 33...
Re7 {[%clk 0:01:24.2]} 34. Qf3 {[%clk 0:00:17.7]} 34... b5 {[%clk 0:01:20]} 35.
Be2 {[%clk 0:00:16.3]} 35... b4 {[%clk 0:01:18.6]} 36. axb4 {[%clk 0:00:16.8]}
36... axb4 {[%clk 0:01:19.5]} 37. Bc4 {[%clk 0:00:17.3]} 37... Kg7 {[%clk
0:01:19.7]} 38. Kg2 {[%clk 0:00:17.1]} 38... h5 {[%clk 0:01:19.4]} 39. Rf2
{[%clk 0:00:17.5]} 39... Ng4 {[%clk 0:01:18.4]} 40. Re2 {[%clk 0:00:18]} 40...
Bf6 {[%clk 0:01:16.8]} 41. h3 {[%clk 0:00:17.8]} 41... Ne5 {[%clk 0:01:17.1]}
42. Qf4 {[%clk 0:00:11.9]} 42... h4 {[%clk 0:00:55]} 43. Bb5 {[%clk 0:00:05.1]}
43... hxg3 {[%clk 0:00:50.7]} 44. Qxg3 {[%clk 0:00:06]} 44... Qb6 {[%clk
0:00:36.4]} 45. Bc6 {[%clk 0:00:04.1]} 45... Nxc6 {[%clk 0:00:35.1]} 46. dxc6
{[%clk 0:00:05]} 46... Qxc6 {[%clk 0:00:35.4]} 47. Rce1 {[%clk 0:00:05.6]} 47...
Be5 {[%clk 0:00:35.3]} 48. Qd3 {[%clk 0:00:05.4]} 48... Rd7 {[%clk 0:00:34.3]}
49. Qf3 {[%clk 0:00:03.3]} 49... Rd6 {[%clk 0:00:28.3]} 50. h4 {[%clk
0:00:03.5]} 50... Qd7 {[%clk 0:00:27.6]} 51. h5 {[%clk 0:00:02.9]} 51... Rd3
{[%clk 0:00:28.2]} 52. h6+ {[%clk 0:00:01.3]} 52... Kxh6 {[%clk 0:00:28]} 53.
Rh1+ {[%clk 0:00:01.5]} 53... Kg7 {[%clk 0:00:28.3]} 54. Qf2 {[%clk 0:00:02.2]}
54... Qg4+ {[%clk 0:00:28.1]} 0-1

[Event "Early-Titled-Tuesday-Blitz-August-29-2023"]
[Site "Chess.com"]
[Date "2023.08.29"]
[Round "1"]
[White "GAusal"]
[Black "temiksmozg"]
[Result "0-1"]
[WhiteElo "2324"]
[BlackElo "2648"]
[TimeControl "180+1"]
[EndTime "8:07:40 PDT"]
[Termination "temiksmozg won on time"]

1. d4 {[%clk 0:03:00.9]} 1... Nf6 {[%clk 0:02:59.3]} 2. Nf3 {[%clk 0:03:00.3]}
2... e6 {[%clk 0:02:59.4]} 3. Bf4 {[%clk 0:02:58.6]} 3... d5 {[%clk 0:02:58.9]}
4. e3 {[%clk 0:02:58.7]} 4... Bd6 {[%clk 0:02:58.6]} 5. Ne5 {[%clk 0:02:54.6]}
5... O-O {[%clk 0:02:56.2]} 6. c3 {[%clk 0:02:47.6]} 6... c5 {[%clk 0:02:49.4]}
7. Bd3 {[%clk 0:02:19]} 7... Nc6 {[%clk 0:02:43.5]} 8. Nd2 {[%clk 0:02:15.4]}
8... Qc7 {[%clk 0:01:44.1]} 9. Ndf3 {[%clk 0:02:10.5]} 9... b6 {[%clk
0:01:44.2]} 10. O-O {[%clk 0:02:04.8]} 10... Bb7 {[%clk 0:01:43.9]} 11. Nxc6
{[%clk 0:01:59.9]} 11... Bxc6 {[%clk 0:01:17.8]} 12. Bxd6 {[%clk 0:01:52.5]}
12... Qxd6 {[%clk 0:01:18.7]} 13. Ne5 {[%clk 0:01:52.2]} 13... Rfc8 {[%clk
0:01:13.1]} 14. f4 {[%clk 0:01:48.2]} 14... b5 {[%clk 0:00:59.9]} 15. g4 {[%clk
0:01:43.2]} 15... b4 {[%clk 0:00:59.6]} 16. g5 {[%clk 0:01:38.9]} 16... Ne4
{[%clk 0:00:59.6]} 17. Rf3 {[%clk 0:01:34]} 17... bxc3 {[%clk 0:00:50.9]} 18.
bxc3 {[%clk 0:01:27.5]} 18... Nxc3 {[%clk 0:00:45.2]} 19. Bxh7+ {[%clk
0:01:16.9]} 19... Kf8 {[%clk 0:00:45.4]} 20. Qe1 {[%clk 0:01:12.6]} 20... cxd4
{[%clk 0:00:35.7]} 21. exd4 {[%clk 0:01:08.6]} 21... Bb5 {[%clk 0:00:36.2]} 22.
Rxc3 {[%clk 0:01:01.2]} 22... f6 {[%clk 0:00:35.8]} 23. gxf6 {[%clk 0:00:56.1]}
23... gxf6 {[%clk 0:00:35.9]} 24. Ng6+ {[%clk 0:00:47.5]} 24... Ke8 {[%clk
0:00:28.8]} 25. Re3 {[%clk 0:00:43.6]} 25... Kd7 {[%clk 0:00:22.5]} 26. Qh4
{[%clk 0:00:39.2]} 26... Rc2 {[%clk 0:00:07.8]} 27. Qxf6 {[%clk 0:00:36.7]}
27... Rac8 {[%clk 0:00:03.6]} 28. Ne5+ {[%clk 0:00:34.4]} 28... Kc7 {[%clk
0:00:03.6]} 29. a4 {[%clk 0:00:27.6]} 29... Bc4 {[%clk 0:00:03.1]} 30. Qf7+
{[%clk 0:00:23.4]} 30... Kb6 {[%clk 0:00:03.2]} 31. Rb1+ {[%clk 0:00:22.3]}
31... Ka5 {[%clk 0:00:03.2]} 32. Qxa7+ {[%clk 0:00:19.6]} 32... Ba6 {[%clk
0:00:03.8]} 33. Reb3 {[%clk 0:00:12.3]} 33... Rc1+ {[%clk 0:00:04]} 34. Kg2
{[%clk 0:00:11.3]} 34... Rxb1 {[%clk 0:00:04.3]} 35. Rxb1 {[%clk 0:00:10.7]}
35... Rc2+ {[%clk 0:00:04.4]} 36. Kg3 {[%clk 0:00:10.2]} 36... Rc3+ {[%clk
0:00:04.6]} 37. Nf3 {[%clk 0:00:08.9]} 37... Qd8 {[%clk 0:00:04.4]} 38. Qb8
{[%clk 0:00:06.3]} 38... Qxb8 {[%clk 0:00:02.4]} 39. Rxb8 {[%clk 0:00:06.1]}
39... Be2 {[%clk 0:00:02.6]} 40. Ra8+ {[%clk 0:00:01.2]} 40... Kb4 {[%clk
0:00:03.1]} 41. a5 {[%clk 0:00:01.3]} 41... Rxf3+ {[%clk 0:00:03.4]} 0-1

[Event "Early-Titled-Tuesday-Blitz-August-29-2023"]
[Site "Chess.com"]
[Date "2023.08.29"]
[Round "1"]
[White "chito89"]
[Black "BigAl"]
[Result "0-1"]
[WhiteElo "2853"]
[BlackElo "2472"]
[TimeControl "180+1"]
[EndTime "8:07:41 PDT"]
[Termination "BigAl won by resignation"]

1. e4 {[%clk 0:02:55]} 1... c6 {[%clk 0:02:59.1]} 2. d4 {[%clk 0:02:54.7]} 2...
d5 {[%clk 0:02:59.2]} 3. exd5 {[%clk 0:02:55.6]} 3... cxd5 {[%clk 0:02:59]} 4.
Bd3 {[%clk 0:02:56.2]} 4... Nc6 {[%clk 0:02:58.7]} 5. c3 {[%clk 0:02:56.7]} 5...
Qc7 {[%clk 0:02:59]} 6. h3 {[%clk 0:02:55.4]} 6... g6 {[%clk 0:02:58.3]} 7. Nf3
{[%clk 0:02:55.6]} 7... Bf5 {[%clk 0:02:57.8]} 8. O-O {[%clk 0:02:55.5]} 8...
Nf6 {[%clk 0:02:56.5]} 9. Re1 {[%clk 0:02:53.8]} 9... e6 {[%clk 0:02:54.4]} 10.
Ne5 {[%clk 0:02:36.9]} 10... Bxd3 {[%clk 0:02:51.5]} 11. Nxd3 {[%clk 0:02:36.5]}
11... Bd6 {[%clk 0:02:41.1]} 12. Bh6 {[%clk 0:02:36.1]} 12... Ne4 {[%clk
0:02:15.8]} 13. Nd2 {[%clk 0:02:36.1]} 13... f5 {[%clk 0:02:15.5]} 14. c4 {[%clk
0:02:25.3]} 14... O-O-O {[%clk 0:02:06]} 15. cxd5 {[%clk 0:02:21.4]} 15... exd5
{[%clk 0:02:05.9]} 16. Rc1 {[%clk 0:02:21.9]} 16... Kb8 {[%clk 0:02:04.6]} 17.
Nf3 {[%clk 0:02:12.2]} 17... Qb6 {[%clk 0:01:52]} 18. Nfe5 {[%clk 0:02:05.2]}
18... Nxe5 {[%clk 0:01:42.7]} 19. dxe5 {[%clk 0:02:04.9]} 19... Bb4 {[%clk
0:01:25.3]} 20. Re2 {[%clk 0:01:56.5]} 20... Be7 {[%clk 0:01:23]} 21. Be3 {[%clk
0:01:21.1]} 21... d4 {[%clk 0:01:19.5]} 22. Bf4 {[%clk 0:01:21.7]} 22... Ka8
{[%clk 0:01:05.3]} 23. Rec2 {[%clk 0:01:19.6]} 23... g5 {[%clk 0:01:01.1]} 24.
Bh2 {[%clk 0:01:19.7]} 24... a6 {[%clk 0:00:57.1]} 25. Rc7 {[%clk 0:01:12.8]}
25... Nc3 {[%clk 0:00:48.2]} 26. bxc3 {[%clk 0:00:47.2]} 26... Qxc7 {[%clk
0:00:48.2]} 27. e6 {[%clk 0:00:48.1]} 27... Bd6 {[%clk 0:00:45.1]} 28. Bxd6
{[%clk 0:00:45.2]} 28... Qxd6 {[%clk 0:00:46]} 29. c4 {[%clk 0:00:44.5]} 29...
Qxe6 {[%clk 0:00:43.2]} 30. c5 {[%clk 0:00:41.8]} 30... Rc8 {[%clk 0:00:38]} 31.
Qa4 {[%clk 0:00:42.1]} 31... g4 {[%clk 0:00:31.4]} 32. hxg4 {[%clk 0:00:37.8]}
32... fxg4 {[%clk 0:00:31.5]} 33. Nb4 {[%clk 0:00:38.3]} 33... g3 {[%clk
0:00:29.7]} 34. c6 {[%clk 0:00:36.6]} 34... gxf2+ {[%clk 0:00:29.9]} 35. Kf1
{[%clk 0:00:33.8]} 35... Rhe8 {[%clk 0:00:24.8]} 36. Qd1 {[%clk 0:00:30.2]}
36... Qh6 {[%clk 0:00:18.1]} 37. cxb7+ {[%clk 0:00:29.2]} 37... Kxb7 {[%clk
0:00:18.8]} 38. Qf3+ {[%clk 0:00:29.9]} 38... Kb8 {[%clk 0:00:15.8]} 39. Nc6+
{[%clk 0:00:16.1]} 39... Rxc6 {[%clk 0:00:15.2]} 40. Rxc6 {[%clk 0:00:17]} 40...
Re1+ {[%clk 0:00:11.8]} 41. Kxf2 {[%clk 0:00:17]} 41... Qd2+ {[%clk 0:00:12.2]}
42. Kg3 {[%clk 0:00:17.5]} 42... Re3 {[%clk 0:00:13.1]} 43. Rxa6 {[%clk
0:00:16.6]} 43... Rxf3+ {[%clk 0:00:13.4]} 44. gxf3 {[%clk 0:00:17.5]} 44...
Qg5+ {[%clk 0:00:12.7]} 45. Kf2 {[%clk 0:00:18]} 45... Qe3+ {[%clk 0:00:13.4]}
46. Kg3 {[%clk 0:00:17.7]} 46... Qe1+ {[%clk 0:00:13.8]} 47. Kg4 {[%clk
0:00:17.4]} 47... d3 {[%clk 0:00:14.7]} 0-1

[Event "Early-Titled-Tuesday-Blitz-August-29-2023"]
[Site "Chess.com"]
[Date "2023.08.29"]
[Round "1"]
[White "AradNazari"]
[Black "GiorgianBarbosa"]
[Result "0-1"]
[WhiteElo "2758"]
[BlackElo "2436"]
[TimeControl "180+1"]
[EndTime "8:07:42 PDT"]
[Termination "GiorgianBarbosa won by checkmate"]

1. e4 {[%clk 0:02:58.5]} 1... c5 {[%clk 0:02:56.5]} 2. Nf3 {[%clk 0:02:57.7]}
2... g6 {[%clk 0:02:56.7]} 3. d4 {[%clk 0:02:54.8]} 3... cxd4 {[%clk 0:02:56.7]}
4. Nxd4 {[%clk 0:02:55.3]} 4... Bg7 {[%clk 0:02:57.1]} 5. c4 {[%clk 0:02:54.6]}
5... Nc6 {[%clk 0:02:57.4]} 6. Be3 {[%clk 0:02:55.2]} 6... Nf6 {[%clk
0:02:57.4]} 7. Nc3 {[%clk 0:02:54.7]} 7... O-O {[%clk 0:02:57]} 8. Be2 {[%clk
0:02:51.7]} 8... Nxd4 {[%clk 0:02:57.2]} 9. Bxd4 {[%clk 0:02:50]} 9... d6 {[%clk
0:02:58.1]} 10. O-O {[%clk 0:02:49.9]} 10... Bd7 {[%clk 0:02:58.6]} 11. Qd2
{[%clk 0:02:48.8]} 11... Bc6 {[%clk 0:02:59]} 12. f3 {[%clk 0:02:47.8]} 12...
Nd7 {[%clk 0:02:59.1]} 13. Be3 {[%clk 0:02:46.7]} 13... a5 {[%clk 0:02:58.3]}
14. b3 {[%clk 0:02:44.2]} 14... Nc5 {[%clk 0:02:54.8]} 15. Rac1 {[%clk
0:02:42.6]} 15... e6 {[%clk 0:02:54.5]} 16. Rfd1 {[%clk 0:02:42.9]} 16... Be5
{[%clk 0:02:53.9]} 17. Nb5 {[%clk 0:02:22.4]} 17... Qh4 {[%clk 0:02:27.7]} 18.
h3 {[%clk 0:02:18.3]} 18... Qg3 {[%clk 0:02:18.2]} 19. Nd4 {[%clk 0:01:59.7]}
19... Qh2+ {[%clk 0:02:15.3]} 20. Kf1 {[%clk 0:01:58.7]} 20... Bxe4 {[%clk
0:01:58.7]} 21. Bg1 {[%clk 0:01:47.4]} 21... Qh1 {[%clk 0:01:49.7]} 22. fxe4
{[%clk 0:01:47.7]} 22... Nxe4 {[%clk 0:01:48.6]} 23. Qe3 {[%clk 0:01:39.3]}
23... f5 {[%clk 0:01:26]} 24. Nf3 {[%clk 0:01:36.6]} 24... Ng3+ {[%clk
0:00:56.7]} 25. Kf2 {[%clk 0:01:36.5]} 25... Ne4+ {[%clk 0:00:48.7]} 26. Kf1
{[%clk 0:01:35.5]} 26... Ng3+ {[%clk 0:00:43.1]} 27. Ke1 {[%clk 0:01:31.8]}
27... Qxg2 {[%clk 0:00:42.7]} 28. Nxe5 {[%clk 0:01:25]} 28... dxe5 {[%clk
0:00:43.2]} 29. Bf2 {[%clk 0:01:09.4]} 29... Ne4 {[%clk 0:00:37.8]} 30. Bf3
{[%clk 0:01:03.4]} 30... Qxf2+ {[%clk 0:00:33.8]} 31. Qxf2 {[%clk 0:01:03.2]}
31... Nxf2 {[%clk 0:00:34.7]} 32. Kxf2 {[%clk 0:01:04.1]} 32... e4 {[%clk
0:00:35.6]} 33. Bg2 {[%clk 0:01:03.7]} 33... Rfd8 {[%clk 0:00:34.4]} 34. Ke3
{[%clk 0:01:00.9]} 34... Kg7 {[%clk 0:00:33.9]} 35. c5 {[%clk 0:00:58.8]} 35...
Kf6 {[%clk 0:00:33.5]} 36. Bf1 {[%clk 0:00:56]} 36... Ke5 {[%clk 0:00:33.2]} 37.
Bc4 {[%clk 0:00:55.6]} 37... f4+ {[%clk 0:00:31.8]} 38. Kf2 {[%clk 0:00:49.8]}
38... g5 {[%clk 0:00:31.7]} 39. Bb5 {[%clk 0:00:32.4]} 39... h5 {[%clk 0:00:28]}
40. Bd7 {[%clk 0:00:29.5]} 40... g4 {[%clk 0:00:23.3]} 41. hxg4 {[%clk
0:00:29.3]} 41... hxg4 {[%clk 0:00:24.2]} 42. c6 {[%clk 0:00:29.5]} 42... g3+
{[%clk 0:00:22.8]} 43. Kg2 {[%clk 0:00:28.9]} 43... Rh8 {[%clk 0:00:16]} 44. c7
{[%clk 0:00:23.1]} 44... Rh2+ {[%clk 0:00:15.4]} 45. Kg1 {[%clk 0:00:22.8]}
45... Rah8 {[%clk 0:00:15.7]} 46. Kf1 {[%clk 0:00:10.7]} 46... Rh1+ {[%clk
0:00:13.2]} 47. Ke2 {[%clk 0:00:10.2]} 47... R8h2# {[%clk 0:00:14.1]} 0-1